[Event "Montenegro Festival Mix-01 2021"]
[Site "Podgorica"]
[Date "2021.03.20"]
[Round "3.7"]
[White "Alivodic, Dario"]
[Black "Injac, Teodora"]
[Result "0-1"]
[ECO "E24"]
[WhiteElo "2189"]
[BlackElo "2319"]
[Annotator "NA"]
[PlyCount "72"]
[EventDate "2021.02.26"]
[EventType "swiss"]
[EventCountry "MNE"]
[SourceTitle "playchess.com"]
[Source "ChessBase"]
[SourceQuality "1"]
[TimeControl "40/5400+30:900+30"]

1. d4 {[%emt 0:00:00]} Nf6 {[%emt 0:00:00]} 2. c4 {[%emt 0:00:00]} e6 {[%emt 0:00:08]} 3. Nc3 {[%emt 0:00:04]} Bb4 {[%emt 0:00:15]} 4. a3 {[%emt 0:00:43]} Bxc3+ {[%emt 0:00:43]} 5. bxc3 {[%emt 0:00:03]} Nc6 {[%emt 0:01:11]} 6. f3 {[%emt 0:04:40]} b6 {[%emt 0:00:32]} 7. e4 {[%emt 0:00:20]} Na5 {[%emt 0:00:58]} 8. Bd3 {[%emt 0:00:05]} Ba6 {[%emt 0:01:32]} 9. Qe2 {[%emt 0:00:06]} c5 {[%emt 0:02:01]} 10. e5 {[%emt 0:04:48]} Ng8 {[%emt 0:04:49]} 11. Be3 {[%emt 0:15:18]} Rc8 {[%emt 0:07:34]} 12. Rc1 {[%emt 0:00:41]} Ne7 {[%emt 0:14:18]} 13. d5 {[%emt 0:10:53]} Nf5 {[%emt 0:09:34]} 14. Bf2 {[%emt 0:05:54]} Qg5 {[%emt 0:02:04]} 15. f4 {[%emt 0:04:36]} Qxf4 {[%emt 0:02:04]} 16. Rd1 {[%emt 0:00:09]} Bxc4 {[%emt 0:02:04]} 17. Nf3 {[%emt 0:01:04]} Bxd5 {[%emt 0:14:34]} 18. O-O {[%emt 0:01:47]} Bxf3 {[%emt 0:02:20]} 19. gxf3 {[%emt 0:00:25]} O-O {[%emt 0:01:42]} 20. Kh1 {[%emt 0:01:18]} Nc6 {[%emt 0:00:23]} 21. Rde1 {[%emt 0:01:43]} f6 {[%emt 0:01:09]} 22. exf6 {[%emt 0:00:22]} Rxf6 {[%emt 0:00:13]} 23. Rg1 {[%emt 0:00:07]} Rh6 {[%emt 0:07:50]} 24. Rg2 {[%emt 0:00:25]} Nce7 {[%emt 0:00:49]} 25. Reg1 {[%emt 0:00:31]} Rh3 {[%emt 0:02:00]} 26. Be4 {[%emt 0:00:49]} Rf8 {[%emt 0:06:49]} 27. Be1 {[%emt 0:03:47]} Ng6 {[%emt 0:02:21]} 28. c4 {[%emt 0:01:09]} Nd4 {[%emt 0:02:37]} 29. Qd3 {[%emt 0:01:50]} Nxf3 {[%emt 0:02:02]} 30. Bg3 {[%emt 0:00:30]} Rxg3 {[%emt 0:01:33]} 31. Rxg3 {[%emt 0:01:03]} Nxg1 {[%emt 0:00:15]} 32. Rxg1 {[%emt 0:00:41]} Ne5 {[%emt 0:02:16]} 33. Qe2 {[%emt 0:00:53]} g6 {[%emt 0:02:03]} 34. Qc2 {[%emt 0:00:14]} Ng4 {[%emt 0:01:11]} 35. Bxg6 {[%emt 0:00:22]} Nf2+ {[%emt 0:00:22]} 36. Kg2 {[%emt 0:00:05]} Qf3+ {[%emt 0:00:10]} 0-1

[Event "Montenegro Festival Mix-01 2021"]
[Site "Podgorica"]
[Date "2021.03.20"]
[Round "3.8"]
[White "Pobor, Milo"]
[Black "Djurovic, Peko"]
[Result "1/2-1/2"]
[ECO "C42"]
[WhiteElo "2105"]
[BlackElo "2062"]
[Annotator "NA"]
[PlyCount "25"]
[EventDate "2021.02.26"]
[EventType "swiss"]
[EventCountry "MNE"]
[SourceTitle "playchess.com"]
[Source "ChessBase"]
[SourceQuality "1"]
[TimeControl "40/5400+30:900+30"]

1. e4 e5 {[%emt 1:30:30]} 2. Nf3 Nf6 3. Nxe5 d6 4. Nf3 Nxe4 5. Nc3 Nxc3 6. dxc3 Be7 7. Be3 Nc6 8. Qd2 Be6 9. O-O-O Bf6 10. Kb1 a6 11. Nd4 Nxd4 12. Bxd4 Qe7 13. Be2 1/2-1/2

[Event "Montenegro Festival Mix-01 2021"]
[Site "Podgorica"]
[Date "2021.03.21"]
[Round "4.3"]
[White "Can, Isik"]
[Black "Sukovic, Andrej"]
[Result "1-0"]
[ECO "B96"]
[WhiteElo "2380"]
[BlackElo "2282"]
[Annotator "ChessBase"]
[PlyCount "117"]
[EventDate "2021.02.26"]
[EventType "swiss"]
[EventCountry "MNE"]
[SourceTitle "playchess.com"]
[Source "ChessBase"]
[SourceQuality "1"]
[TimeControl "40/5400+30:900+30"]

1. e4 {[%emt 0:00:00]} c5 {[%emt 0:03:39]} 2. Nf3 {[%emt 0:00:00]} d6 {[%emt 0:00:07]} 3. d4 {[%emt 0:00:00]} cxd4 {[%emt 0:00:05]} 4. Nxd4 {[%emt 0:00:00]} Nf6 {[%emt 0:00:10]} 5. Nc3 {[%emt 0:00:03]} a6 {[%emt 0:00:06]} 6. Bg5 {[%emt 0:01:09]} e6 {[%emt 0:00:14]} 7. f4 {[%emt 0:00:13]} Bd7 {[%emt 0:00:05]} 8. Qf3 {[%emt 0:00:45]} Nc6 {[%emt 0:00:08]} 9. O-O-O {[%emt 0:00:08]} Nxd4 {[%emt 0:00:05]} 10. Rxd4 {[%emt 0:00:05]} Qa5 {[%emt 0:00:06]} 11. Bc4 {[%emt 0:03:58]} h6 {[%emt 0:03:11]} 12. Bxf6 {[%emt 0:24:18]} gxf6 {[%emt 0:00:07]} 13. Bb3 {[%emt 0:03:24]} O-O-O {[%emt 0:05:01]} 14. Kb1 {[%emt 0:02:51]} h5 {[%emt 0:14:42]} 15. f5 {[%emt 0:15:29]} Be7 {[%emt 0:00:29]} 16. Ne2 {[%emt 0:10:41]} Qe5 {[%emt 0:14:20]} 17. Rhd1 {[%emt 0:02:03]} h4 {[%emt 0:10:02]} 18. Nf4 {[%emt 0:13:12]} Rhg8 {[%emt 0:00:49]} 19. Rd5 {[%emt 0:12:31]} exd5 {[%emt 0:00:08]} 20. Rxd5 {[%emt 0:00:04]} Rxg2 {[%emt 0:00:28]} 21. a3 {[%emt 0:03:52]} Rg1+ {[%emt 0:02:00]} 22. Ka2 {[%emt 0:00:07]} Rf1 {[%emt 0:00:06]} 23. Qxf1 {[%emt 0:00:52]} Qxe4 {[%emt 0:00:08]} 24. Rd1 {[%emt 0:01:41]} Bf8 {[%emt 0:03:50]} 25. Nd5 {[%emt 0:00:51]} Kb8 {[%emt 0:02:22]} 26. Nxf6 {[%emt 0:02:31]} Qxf5 {[%emt 0:01:44]} 27. Nxd7+ {[%emt 0:00:24]} Qxd7 {[%emt 0:00:06]} 28. Bxf7 {[%emt 0:00:05]} Bg7 {[%emt 0:00:55]} 29. Bc4 {[%emt 0:02:16]} Qc6 {[%emt 0:05:48]} 30. Qd3 {[%emt 0:00:53]} Qb6 {[%emt 0:00:47]} 31. c3 {[%emt 0:00:08]} Be5 {[%emt 0:00:06]} 32. Rd2 {[%emt 0:00:34]} Rf8 {[%emt 0:01:57]} 33. Bd5 {[%emt 0:00:12]} Rf4 {[%emt 0:05:59]} 34. Rg2 {[%emt 0:00:41]} Qc5 {[%emt 0:01:23]} 35. Rg8+ {[%emt 0:00:53]} Ka7 {[%emt 0:00:30]} 36. Re8 {[%emt 0:00:17]} Bf6 {[%emt 0:05:24]} 37. Rf8 {[%emt 0:00:01]} Be5 {[%emt 0:00:30]} 38. Rd8 {[%emt 0:00:15]} Bd4 {[%emt 0:05:25]} 39. Bxb7 {[%emt 0:01:27]} Kxb7 {[%emt 0:02:13]} 40. Qh7+ {[%emt 0:00:00]} Kc6 {[%emt 0:00:00]} 41. Rc8+ {[%emt 0:05:23]} Kd5 {[%emt 0:04:03]} 42. Qb7+ {[%emt 0:01:11]} Ke5 {[%emt 0:00:15]} 43. Rxc5+ {[%emt 0:03:58]} Bxc5 {[%emt 0:00:05]} 44. Qxa6 {[%emt 0:00:16]} Rf2 {[%emt 0:05:57]} 45. h3 {[%emt 0:00:01]} Rf4 {[%emt 0:05:04]} 46. Qc6 {[%emt 0:01:21]} Bf2 {[%emt 0:00:22]} 47. a4 {[%emt 0:02:00]} d5 {[%emt 0:01:20]} 48. a5 {[%emt 0:01:08]} Rf3 {[%emt 0:04:48]} 49. Qe8+ {[%emt 0:01:37]} Kf4 {[%emt 0:00:42]} 50. Qe6 {[%emt 0:00:20]} Rg3 {[%emt 0:00:28]} 51. a6 {[%emt 0:00:34]} Rg2 {[%emt 0:01:02]} 52. Qd6+ {[%emt 0:02:08]} Kf3 {[%emt 0:00:17]} 53. Qxd5+ {[%emt 0:00:37]} Kg3 {[%emt 0:00:05]} 54. Qd7 {[%emt 0:00:10]} Kh2 {[%emt 0:00:21]} 55. a7 {[%emt 0:01:50]} Bxa7 {[%emt 0:00:06]} 56. Qxa7 {[%emt 0:00:02]} Kxh3 {[%emt 0:00:05]} 57. c4 {[%emt 0:00:07]} Kh2 {[%emt 0:01:10]} 58. c5 {[%emt 0:00:26]} h3 {[%emt 0:00:08]} 59. c6 {[%emt 0:00:20]} 1-0

[Event "Montenegro Festival Mix-01 2021"]
[Site "Podgorica"]
[Date "2021.03.21"]
[Round "4.5"]
[White "Injac, Teodora"]
[Black "Nikcevic, Nebojsa"]
[Result "1-0"]
[ECO "E04"]
[WhiteElo "2319"]
[BlackElo "2412"]
[Annotator "ChessBase"]
[PlyCount "51"]
[EventDate "2021.02.26"]
[EventType "swiss"]
[EventCountry "MNE"]
[SourceTitle "playchess.com"]
[Source "ChessBase"]
[SourceQuality "1"]
[TimeControl "40/5400+30:900+30"]

1. d4 {[%emt 0:03:34]} Nf6 {[%emt 0:02:43]} 2. c4 {[%emt 0:00:41]} e6 {[%emt 0:00:52]} 3. Nf3 {[%emt 0:00:11]} d5 {[%emt 0:00:10]} 4. g3 {[%emt 0:00:55]} dxc4 {[%emt 0:02:34]} 5. Bg2 {[%emt 0:00:18]} Nc6 {[%emt 0:00:17]} 6. O-O {[%emt 0:01:44]} Rb8 {[%emt 0:00:04]} 7. e3 {[%emt 0:01:31]} b5 {[%emt 0:03:52]} 8. b3 {[%emt 0:00:42]} cxb3 {[%emt 0:00:38]} 9. axb3 {[%emt 0:00:02]} a6 {[%emt 0:06:00]} 10. Qe2 {[%emt 0:16:59]} Bb7 {[%emt 0:09:12]} 11. Bd2 {[%emt 0:13:22]} Bd6 {[%emt 0:13:33]} 12. Rc1 {[%emt 0:02:03]} Ne7 {[%emt 0:04:38]} 13. Ne1 {[%emt 0:22:23]} c6 {[%emt 0:10:28]} 14. Nd3 {[%emt 0:01:01]} Nd7 {[%emt 0:01:04]} 15. Nc3 {[%emt 0:08:22]} Bc7 {[%emt 0:17:20]} 16. Ne4 {[%emt 0:08:02]} a5 {[%emt 0:00:17]} 17. f4 {[%emt 0:06:21]} O-O {[%emt 0:02:47]} 18. Ne5 {[%emt 0:00:58]} Nxe5 {[%emt 0:08:34]} 19. fxe5 {[%emt 0:00:19]} Ra8 {[%emt 0:00:24]} 20. Qh5 {[%emt 0:02:33]} Bc8 {[%emt 0:08:40]} 21. Rf1 {[%emt 0:00:46]} Ng6 {[%emt 0:00:09]} 22. Ng5 {[%emt 0:01:10]} h6 {[%emt 0:02:31]} 23. Nxf7 {[%emt 0:00:25]} Rxf7 {[%emt 0:01:16]} 24. Rxf7 {[%emt 0:03:01]} Kxf7 {[%emt 0:01:13]} 25. Rf1+ {[%emt 0:00:08]} Kg8 {[%emt 0:00:08]} 26. Qxg6 {[%emt 0:00:07]} 1-0

[Event "Montenegro Festival Mix-01 2021"]
[Site "Podgorica"]
[Date "2021.03.21"]
[Round "4.7"]
[White "Pobor, Milo"]
[Black "Kisic, Bozidar"]
[Result "0-1"]
[ECO "B15"]
[WhiteElo "2105"]
[BlackElo "2233"]
[Annotator "ChessBase"]
[PlyCount "86"]
[EventDate "2021.02.26"]
[EventType "swiss"]
[EventCountry "MNE"]
[SourceTitle "playchess.com"]
[Source "ChessBase"]
[SourceQuality "1"]
[TimeControl "40/5400+30:900+30"]

1. e4 {[%emt 0:04:15]} g6 {[%emt 0:03:36]} 2. d4 {[%emt 0:00:09]} c6 {[%emt 0:01:38]} 3. Nc3 {[%emt 0:03:49]} Bg7 {[%emt 0:00:14]} 4. Be3 {[%emt 0:01:18]} d5 {[%emt 0:00:16]} 5. e5 {[%emt 0:00:46]} h5 {[%emt 0:00:35]} 6. Qd2 {[%emt 0:04:45]} Nh6 {[%emt 0:02:45]} 7. Bxh6 {[%emt 0:03:31]} Bxh6 {[%emt 0:00:08]} 8. f4 {[%emt 0:01:41]} Qb6 {[%emt 0:05:57]} 9. Nf3 {[%emt 0:12:35]} Bxf4 {[%emt 0:22:57]} 10. Qxf4 {[%emt 0:07:31]} Qxb2 {[%emt 0:00:35]} 11. Kd2 {[%emt 0:10:45]} Qxa1 {[%emt 0:01:10]} 12. Nxd5 {[%emt 0:01:42]} Kd8 {[%emt 0:10:12]} 13. Nxe7 {[%emt 0:12:13]} Be6 {[%emt 0:14:45]} 14. Qf6 {[%emt 0:20:46]} Re8 {[%emt 0:01:48]} 15. Nxc6+ {[%emt 0:05:24]} Kc7 {[%emt 0:01:08]} 16. Nb4 {[%emt 0:03:51]} Nc6 {[%emt 0:05:16]} 17. Nxc6 {[%emt 0:02:47]} bxc6 {[%emt 0:00:14]} 18. d5 {[%emt 0:00:39]} cxd5 {[%emt 0:01:00]} 19. Ng5 {[%emt 0:00:31]} Qd4+ {[%emt 0:09:34]} 20. Bd3 {[%emt 0:00:01]} Qb4+ {[%emt 0:00:31]} 21. Kc1 {[%emt 0:00:55]} Qe7 {[%emt 0:01:39]} 22. Rf1 {[%emt 0:00:05]} Rab8 {[%emt 0:03:32]} 23. Nxe6+ {[%emt 0:00:37]} fxe6 {[%emt 0:01:09]} 24. Qxg6 {[%emt 0:00:44]} Qa3+ {[%emt 0:02:09]} 25. Kd2 {[%emt 0:00:27]} Qb4+ {[%emt 0:00:48]} 26. Ke2 {[%emt 0:00:39]} Qg4+ {[%emt 0:00:39]} 27. Qxg4 {[%emt 0:00:01]} hxg4 {[%emt 0:00:02]} 28. Rf7+ {[%emt 0:00:11]} Kb6 {[%emt 0:00:36]} 29. Rg7 {[%emt 0:01:03]} Rg8 {[%emt 0:00:51]} 30. Rd7 {[%emt 0:00:31]} Rbd8 {[%emt 0:00:43]} 31. Re7 {[%emt 0:00:45]} Rde8 {[%emt 0:00:29]} 32. Rd7 {[%emt 0:00:09]} Rg5 {[%emt 0:01:01]} 33. Rd6+ {[%emt 0:00:31]} Kc7 {[%emt 0:01:32]} 34. Ra6 {[%emt 0:00:14]} Rxe5+ {[%emt 0:00:35]} 35. Kf2 {[%emt 0:00:11]} Kb7 {[%emt 0:01:16]} 36. Ra4 {[%emt 0:00:17]} Rf8+ {[%emt 0:01:20]} 37. Kg3 {[%emt 0:00:17]} Re3+ {[%emt 0:01:45]} 38. Kxg4 {[%emt 0:00:09]} e5 {[%emt 0:00:18]} 39. Rb4+ {[%emt 0:01:39]} Kc7 {[%emt 0:01:20]} 40. Bg6 {[%emt 0:00:00]} Re2 {[%emt 0:00:00]} 41. g3 {[%emt 0:00:49]} Rxh2 {[%emt 0:03:02]} 42. Rb5 {[%emt 0:00:14]} Kc6 {[%emt 0:00:59]} 43. Ra5 {[%emt 0:00:06]} e4 {[%emt 0:01:31]} 0-1

[Event "Montenegro Festival Mix-01 2021"]
[Site "Podgorica"]
[Date "2021.03.21"]
[Round "4.8"]
[White "Djurovic, Peko"]
[Black "Alivodic, Dario"]
[Result "1-0"]
[ECO "C18"]
[WhiteElo "2062"]
[BlackElo "2189"]
[Annotator "NA"]
[PlyCount "53"]
[EventDate "2021.02.26"]
[EventType "swiss"]
[EventCountry "MNE"]
[SourceTitle "playchess.com"]
[Source "ChessBase"]
[SourceQuality "1"]
[TimeControl "40/5400+30:900+30"]

1. e4 {[%emt 0:04:24]} e6 {[%emt 0:00:05]} 2. d4 {[%emt 0:00:11]} d5 {[%emt 0:00:06]} 3. Nc3 {[%emt 0:00:06]} Bb4 {[%emt 0:00:06]} 4. e5 {[%emt 0:00:22]} c5 {[%emt 0:01:03]} 5. a3 {[%emt 0:00:57]} Bxc3+ {[%emt 0:00:04]} 6. bxc3 {[%emt 0:00:04]} Ne7 {[%emt 0:00:05]} 7. Qg4 {[%emt 0:01:49]} cxd4 {[%emt 0:00:10]} 8. Bd3 {[%emt 0:07:55]} (8. Qxg7 $11 Rg8 9. Qxh7) 8... Qc7 {[%emt 0:02:01]} ({Black should play} 8... Qa5 $15 9. Ne2 O-O) 9. Ne2 {[%emt 0:02:20]} dxc3 {[%emt 0:00:32]} 10. Qxg7 {[%emt 0:01:16]} Rg8 {[%emt 0:00:07]} 11. Qxh7 {[%emt 0:00:11]} Qxe5 $14 {[%emt 0:00:27]} 12. h4 {[%emt 0:01:38]} Rxg2 {[%emt 0:10:40]} 13. Bg5 {[%emt 0:08:05]} Nd7 {[%emt 0:30:34]} 14. Kf1 {[%emt 0:08:02]} Nf8 {[%emt 0:06:36]} 15. Qh6 {[%emt 0:07:26]} Rh2 {[%emt 0:02:33]} 16. Rxh2 {[%emt 0:01:20]} Qxh2 {[%emt 0:00:26]} 17. Ng3 {[%emt 0:00:32]} Qh3+ {[%emt 0:01:53]} 18. Kg1 {[%emt 0:00:12]} e5 {[%emt 0:06:14]} 19. Qh8 {[%emt 0:19:18]} Be6 {[%emt 0:16:41]} 20. Qxe5 {[%emt 0:08:26]} Neg6 {[%emt 0:11:59]} 21. Qc7 {[%emt 0:12:04]} a6 {[%emt 0:04:39]} 22. Re1 {[%emt 0:02:07]} Nh7 {[%emt 0:02:41]} 23. Bf5 {[%emt 0:02:34]} Nxg5 {[%emt 0:00:51]} 24. hxg5 {[%emt 0:00:28]} Qh8 {[%emt 0:00:49]} 25. Rxe6+ {[%emt 0:00:11]} Kf8 {[%emt 0:00:29]} 26. Bxg6 {[%emt 0:00:08]} fxg6 {[%emt 0:00:28]} 27. Qe7+ {[%emt 0:00:07]} 1-0

[Event "Montenegro Festival Mix-01 2021"]
[Site "Podgorica"]
[Date "2021.03.21"]
[Round "5.6"]
[White "Nikcevic, Nebojsa"]
[Black "Sukovic, Andrej"]
[Result "1-0"]
[ECO "E99"]
[WhiteElo "2412"]
[BlackElo "2282"]
[Annotator "ChessBase"]
[PlyCount "69"]
[EventDate "2021.02.26"]
[EventType "swiss"]
[EventCountry "MNE"]
[SourceTitle "playchess.com"]
[Source "ChessBase"]
[SourceQuality "1"]
[TimeControl "40/5400+30:900+30"]

1. d4 {[%emt 0:18:06]} Nf6 {[%emt 0:00:00]} 2. c4 {[%emt 0:00:03]} g6 {[%emt 0:00:00]} 3. Nc3 {[%emt 0:00:06]} Bg7 {[%emt 0:00:00]} 4. e4 {[%emt 0:00:04]} d6 {[%emt 0:00:02]} 5. Nf3 {[%emt 0:00:24]} O-O {[%emt 0:00:07]} 6. Be2 {[%emt 0:00:14]} e5 {[%emt 0:00:08]} 7. O-O {[%emt 0:00:09]} Nc6 {[%emt 0:00:06]} 8. d5 {[%emt 0:00:08]} Ne7 {[%emt 0:00:05]} 9. Ne1 {[%emt 0:01:01]} Nd7 {[%emt 0:00:08]} 10. Nd3 {[%emt 0:00:14]} f5 {[%emt 0:00:11]} 11. f3 {[%emt 0:00:05]} c6 {[%emt 0:20:41]} 12. Be3 {[%emt 0:05:08]} Nb6 {[%emt 0:01:05]} 13. Qb3 {[%emt 0:05:21]} f4 {[%emt 0:08:38]} 14. Bf2 {[%emt 0:01:18]} c5 {[%emt 0:00:16]} 15. Nb5 {[%emt 0:02:45]} Rf6 {[%emt 0:05:04]} 16. Nxd6 {[%emt 0:14:29]} Rxd6 {[%emt 0:11:33]} 17. Bxc5 {[%emt 0:00:11]} Rd7 {[%emt 0:00:11]} 18. a4 {[%emt 0:03:06]} Rc7 {[%emt 0:08:21]} 19. a5 {[%emt 0:01:49]} Rxc5 {[%emt 0:05:00]} 20. axb6 {[%emt 0:06:15]} Nc6 {[%emt 0:00:06]} 21. Nxc5 {[%emt 0:14:37]} Nd4 {[%emt 0:00:09]} 22. Qd3 {[%emt 0:01:56]} Qxb6 {[%emt 0:00:10]} 23. b4 {[%emt 0:00:27]} Qxb4 {[%emt 0:00:14]} 24. Na4 {[%emt 0:00:10]} Bd7 {[%emt 0:03:00]} 25. Rfb1 {[%emt 0:02:34]} Qa5 {[%emt 0:00:06]} 26. Nb6 {[%emt 0:06:04]} Qc5 {[%emt 0:01:38]} 27. Nxd7 {[%emt 0:03:21]} Nxe2+ {[%emt 0:00:26]} 28. Kh1 {[%emt 0:07:02]} Qe7 {[%emt 0:08:30]} 29. Qxe2 {[%emt 0:01:03]} Qxd7 {[%emt 0:00:05]} 30. c5 {[%emt 0:00:16]} Bf8 {[%emt 0:02:30]} 31. Qb5 {[%emt 0:01:22]} Qxb5 {[%emt 0:02:57]} 32. Rxb5 {[%emt 0:00:05]} a6 {[%emt 0:00:33]} 33. d6 {[%emt 0:01:56]} Kf7 {[%emt 0:00:58]} 34. Rxb7+ {[%emt 0:00:11]} Ke6 {[%emt 0:00:06]} 35. Ra5 {[%emt 0:01:00]} 1-0

[Event "Montenegro Festival Mix-01 2021"]
[Site "Podgorica"]
[Date "2021.03.21"]
[Round "5.7"]
[White "Vujovic, Savo"]
[Black "Djurovic, Peko"]
[Result "1/2-1/2"]
[ECO "A38"]
[WhiteElo "2187"]
[BlackElo "2062"]
[Annotator "ChessBase"]
[PlyCount "20"]
[EventDate "2021.02.26"]
[EventType "swiss"]
[EventCountry "MNE"]
[SourceTitle "playchess.com"]
[Source "ChessBase"]
[SourceQuality "1"]
[TimeControl "40/5400+30:900+30"]

1. Nf3 {[%emt 0:00:45]} g6 {[%emt 0:00:07]} 2. c4 {[%emt 0:00:17]} Bg7 {[%emt 0:00:45]} 3. d4 {[%emt 0:00:29]} c5 {[%emt 0:00:17]} 4. Nc3 {[%emt 0:00:35]} cxd4 {[%emt 0:00:19]} 5. Nxd4 {[%emt 0:00:02]} Nc6 {[%emt 0:00:01]} 6. Nc2 {[%emt 0:00:13]} Nf6 {[%emt 0:00:07]} 7. g3 {[%emt 0:00:05]} O-O {[%emt 0:00:05]} 8. Bg2 {[%emt 0:00:03]} d6 {[%emt 0:00:48]} 9. O-O {[%emt 0:00:27]} Be6 {[%emt 0:01:08]} 10. Ne3 {[%emt 0:02:10]} Qd7 {[%emt 0:00:34]} 1/2-1/2

[Event "Montenegro Festival Mix-01 2021"]
[Site "Podgorica"]
[Date "2021.03.21"]
[Round "5.8"]
[White "Alivodic, Dario"]
[Black "Pobor, Milo"]
[Result "1-0"]
[ECO "E83"]
[WhiteElo "2189"]
[BlackElo "2105"]
[Annotator "ChessBase"]
[PlyCount "71"]
[EventDate "2021.02.26"]
[EventType "swiss"]
[EventCountry "MNE"]
[SourceTitle "playchess.com"]
[Source "ChessBase"]
[SourceQuality "1"]
[TimeControl "40/5400+30:900+30"]

1. d4 {[%emt 0:00:00]} Nf6 {[%emt 0:00:00]} 2. c4 {[%emt 0:00:00]} g6 {[%emt 0:00:00]} 3. Nc3 {[%emt 0:00:00]} Bg7 {[%emt 0:00:00]} 4. e4 {[%emt 0:00:00]} d6 {[%emt 0:01:22]} 5. Nge2 {[%emt 0:02:11]} O-O {[%emt 0:00:42]} 6. f3 {[%emt 0:00:51]} a6 {[%emt 0:02:08]} 7. Be3 {[%emt 0:01:17]} Nc6 {[%emt 0:01:54]} 8. Qd2 {[%emt 0:01:08]} Na5 {[%emt 0:01:00]} 9. Ng3 {[%emt 0:03:02]} b5 {[%emt 0:02:45]} 10. Bh6 {[%emt 0:15:43]} Nxc4 {[%emt 0:19:18]} 11. Bxc4 {[%emt 0:00:10]} bxc4 {[%emt 0:00:05]} 12. O-O-O {[%emt 0:04:49]} Kh8 {[%emt 0:14:12]} 13. h4 {[%emt 0:00:56]} Rg8 {[%emt 0:01:32]} 14. Bxg7+ {[%emt 0:00:54]} Rxg7 {[%emt 0:02:20]} 15. h5 {[%emt 0:03:06]} c6 {[%emt 0:01:46]} 16. hxg6 {[%emt 0:20:21]} fxg6 {[%emt 0:00:56]} 17. Rh6 {[%emt 0:08:33]} Rb8 {[%emt 0:06:31]} 18. Rdh1 {[%emt 0:00:45]} Qb6 {[%emt 0:06:55]} 19. Nge2 {[%emt 0:02:07]} e5 {[%emt 0:02:29]} 20. dxe5 {[%emt 0:05:12]} Ng8 {[%emt 0:08:24]} 21. exd6 {[%emt 0:11:33]} Nxh6 {[%emt 0:00:12]} 22. Rxh6 {[%emt 0:00:04]} Bd7 {[%emt 0:02:45]} 23. Nd4 {[%emt 0:03:15]} Qc5 {[%emt 0:03:38]} 24. Nc2 {[%emt 0:01:34]} Re8 {[%emt 0:03:21]} 25. Rh1 {[%emt 0:01:05]} Kg8 {[%emt 0:02:36]} 26. Rd1 {[%emt 0:00:37]} Be6 {[%emt 0:00:28]} 27. Qe3 {[%emt 0:04:03]} Qa5 {[%emt 0:02:28]} 28. Nd4 {[%emt 0:00:31]} Bd7 {[%emt 0:02:32]} 29. f4 {[%emt 0:03:18]} g5 {[%emt 0:04:40]} 30. g3 {[%emt 0:00:18]} gxf4 {[%emt 0:01:15]} 31. gxf4 {[%emt 0:00:14]} c5 {[%emt 0:00:18]} 32. Nde2 {[%emt 0:02:04]} Rb8 {[%emt 0:01:31]} 33. f5 {[%emt 0:00:51]} Qb4 {[%emt 0:01:11]} 34. Rd2 {[%emt 0:00:11]} a5 {[%emt 0:00:08]} 35. Nd5 {[%emt 0:03:06]} Qa4 {[%emt 0:00:19]} 36. Nec3 {[%emt 0:00:27]} 1-0